[Event "Early-Titled-Tuesday-Blitz-August-29-2023"]
[Site "Chess.com"]
[Date "2023.08.29"]
[Round "3"]
[White "Arystanner"]
[Black "AnaKuchava"]
[Result "1-0"]
[WhiteElo "2855"]
[BlackElo "2191"]
[TimeControl "180+1"]
[EndTime "8:27:36 PDT"]
[Termination "Arystanner won by checkmate"]

1. d4 {[%clk 0:03:00.9]} 1... d5 {[%clk 0:02:55.4]} 2. c4 {[%clk 0:03:00.8]}
2... e6 {[%clk 0:02:53.7]} 3. Nf3 {[%clk 0:03:00.9]} 3... Nf6 {[%clk 0:02:53]}
4. Nc3 {[%clk 0:03:01.5]} 4... Be7 {[%clk 0:02:50.8]} 5. Bf4 {[%clk 0:03:01]}
5... c5 {[%clk 0:02:48.2]} 6. dxc5 {[%clk 0:02:58.2]} 6... Bxc5 {[%clk
0:02:45.4]} 7. e3 {[%clk 0:02:54.2]} 7... Nc6 {[%clk 0:02:43.2]} 8. cxd5 {[%clk
0:02:51.5]} 8... Nxd5 {[%clk 0:02:40.4]} 9. Nxd5 {[%clk 0:02:51.7]} 9... exd5
{[%clk 0:02:41.3]} 10. a3 {[%clk 0:02:51.7]} 10... O-O {[%clk 0:02:35.8]} 11.
Bd3 {[%clk 0:02:50.5]} 11... Qf6 {[%clk 0:02:31.9]} 12. b4 {[%clk 0:02:44.5]}
12... Bb6 {[%clk 0:02:29.8]} 13. O-O {[%clk 0:02:42.2]} 13... h6 {[%clk
0:02:29.7]} 14. b5 {[%clk 0:02:22]} 14... Na5 {[%clk 0:02:24.8]} 15. Be5 {[%clk
0:02:21.9]} 15... Qe7 {[%clk 0:02:20.5]} 16. Bc3 {[%clk 0:02:18.7]} 16... Bg4
{[%clk 0:02:18.9]} 17. Bb4 {[%clk 0:02:17.4]} 17... Qf6 {[%clk 0:02:12.4]} 18.
Bxf8 {[%clk 0:02:17.6]} 18... Rxf8 {[%clk 0:02:12.9]} 19. Be2 {[%clk 0:02:17.5]}
19... Nc4 {[%clk 0:02:06.5]} 20. h3 {[%clk 0:02:16.7]} 20... Be6 {[%clk
0:02:04.6]} 21. Nd4 {[%clk 0:02:15.9]} 21... Rc8 {[%clk 0:01:45.7]} 22. Nxe6
{[%clk 0:02:13.3]} 22... fxe6 {[%clk 0:01:41.9]} 23. Rc1 {[%clk 0:02:12.6]}
23... Rd8 {[%clk 0:01:33.9]} 24. Bxc4 {[%clk 0:02:10.6]} 24... dxc4 {[%clk
0:01:34.8]} 25. Qc2 {[%clk 0:02:11]} 25... Rc8 {[%clk 0:01:27.6]} 26. Qe4 {[%clk
0:02:06.8]} 26... c3 {[%clk 0:01:19.3]} 27. Rfd1 {[%clk 0:02:07.1]} 27... Rc7
{[%clk 0:01:12.1]} 28. Rd6 {[%clk 0:02:06.3]} 28... Kf7 {[%clk 0:01:06]} 29. Qf3
{[%clk 0:02:06]} 29... Ke7 {[%clk 0:01:02.1]} 30. Qxf6+ {[%clk 0:02:04.9]} 30...
gxf6 {[%clk 0:01:01.2]} 31. Rd3 {[%clk 0:02:05.6]} 31... Rc5 {[%clk 0:00:58.4]}
32. Rdxc3 {[%clk 0:02:05.4]} 32... Rxb5 {[%clk 0:00:58.1]} 33. Rc4 {[%clk
0:02:04.7]} 33... Rb2 {[%clk 0:00:54.5]} 34. R1c2 {[%clk 0:02:04.6]} 34... Rb1+
{[%clk 0:00:52.2]} 35. Kh2 {[%clk 0:02:04.9]} 35... Ra1 {[%clk 0:00:52.5]} 36.
a4 {[%clk 0:02:04.8]} 36... Kf7 {[%clk 0:00:48.8]} 37. Kg3 {[%clk 0:02:04.3]}
37... e5 {[%clk 0:00:48.5]} 38. Kf3 {[%clk 0:02:00.1]} 38... Kg6 {[%clk
0:00:47.9]} 39. g4 {[%clk 0:02:00.2]} 39... h5 {[%clk 0:00:44.7]} 40. Rd2 {[%clk
0:01:59.6]} 40... hxg4+ {[%clk 0:00:37.6]} 41. hxg4 {[%clk 0:01:59.6]} 41... Kg5
{[%clk 0:00:33.5]} 42. Rd7 {[%clk 0:01:59.2]} 42... f5 {[%clk 0:00:12]} 43. gxf5
{[%clk 0:01:58.6]} 43... Kxf5 {[%clk 0:00:12.9]} 44. Rf7+ {[%clk 0:01:58.6]}
44... Ke6 {[%clk 0:00:11.7]} 45. Rxb7 {[%clk 0:01:59.5]} 45... Ra2 {[%clk
0:00:05.8]} 46. Ke4 {[%clk 0:01:57.5]} 46... Rxf2 {[%clk 0:00:04.8]} 47. Rc6#
{[%clk 0:01:57.8]} 1-0

[Event "Early-Titled-Tuesday-Blitz-August-29-2023"]
[Site "Chess.com"]
[Date "2023.08.29"]
[Round "3"]
[White "VOneChess"]
[Black "HackWithBlack"]
[Result "0-1"]
[WhiteElo "1925"]
[BlackElo "2365"]
[TimeControl "180+1"]
[EndTime "8:27:37 PDT"]
[Termination "HackWithBlack won on time"]

1. e4 {[%clk 0:03:00.8]} 1... c6 {[%clk 0:02:59.6]} 2. d4 {[%clk 0:02:56]} 2...
d5 {[%clk 0:02:59.1]} 3. Nd2 {[%clk 0:02:56.2]} 3... dxe4 {[%clk 0:02:59]} 4.
Nxe4 {[%clk 0:02:57.1]} 4... Bf5 {[%clk 0:02:58.9]} 5. Ng3 {[%clk 0:02:57]} 5...
Bg6 {[%clk 0:02:59.1]} 6. h4 {[%clk 0:02:57.7]} 6... h6 {[%clk 0:02:58.9]} 7.
Nh3 {[%clk 0:02:58]} 7... Nf6 {[%clk 0:02:52.3]} 8. Nf4 {[%clk 0:02:58.1]} 8...
Bh7 {[%clk 0:02:52.5]} 9. Bc4 {[%clk 0:02:58.8]} 9... e6 {[%clk 0:02:48.2]} 10.
O-O {[%clk 0:02:57.1]} 10... Be7 {[%clk 0:02:44.1]} 11. Re1 {[%clk 0:02:56]}
11... O-O {[%clk 0:02:41.8]} 12. c3 {[%clk 0:02:52.8]} 12... Nd5 {[%clk
0:02:34.4]} 13. Bxd5 {[%clk 0:02:39.3]} 13... cxd5 {[%clk 0:02:32.5]} 14. h5
{[%clk 0:01:55.4]} 14... Nc6 {[%clk 0:02:28.8]} 15. Qg4 {[%clk 0:01:54]} 15...
Kh8 {[%clk 0:02:19.8]} 16. Rxe6 {[%clk 0:01:47.2]} 16... Qc8 {[%clk 0:01:53.6]}
17. Be3 {[%clk 0:00:28.4]} 17... fxe6 {[%clk 0:01:48.5]} 18. Nxe6 {[%clk
0:00:29.3]} 18... Bf6 {[%clk 0:01:43.4]} 19. Re1 {[%clk 0:00:26.6]} 19... Re8
{[%clk 0:01:38.8]} 20. Bc1 {[%clk 0:00:24.1]} 20... Bg8 {[%clk 0:01:35.6]} 21.
f4 {[%clk 0:00:09.5]} 21... Rxe6 {[%clk 0:01:33.9]} 22. Rf1 {[%clk 0:00:08.7]}
22... Re1 {[%clk 0:01:28.9]} 23. Qf3 {[%clk 0:00:04.3]} 23... Rxf1+ {[%clk
0:01:28.6]} 24. Kxf1 {[%clk 0:00:04.9]} 24... Qe6 {[%clk 0:01:25.5]} 25. f5
{[%clk 0:00:05.3]} 25... Qe7 {[%clk 0:01:24.1]} 26. Bd2 {[%clk 0:00:04.1]} 26...
Re8 {[%clk 0:01:24.1]} 27. Ne2 {[%clk 0:00:03.4]} 27... Qe4 {[%clk 0:01:22.9]}
28. Nf4 {[%clk 0:00:01.8]} 28... Qxf3+ {[%clk 0:01:22.5]} 29. gxf3 {[%clk
0:00:02.7]} 29... Bf7 {[%clk 0:01:21.5]} 0-1

[Event "Early-Titled-Tuesday-Blitz-August-29-2023"]
[Site "Chess.com"]
[Date "2023.08.29"]
[Round "3"]
[White "TigranHH"]
[Black "noblerone"]
[Result "0-1"]
[WhiteElo "2313"]
[BlackElo "2560"]
[TimeControl "180+1"]
[EndTime "8:27:38 PDT"]
[Termination "noblerone won by resignation"]

1. d4 {[%clk 0:02:56.2]} 1... d5 {[%clk 0:03:00.2]} 2. c4 {[%clk 0:02:55.7]}
2... c6 {[%clk 0:02:59.8]} 3. Nc3 {[%clk 0:02:56.1]} 3... Nf6 {[%clk 0:02:57.6]}
4. e3 {[%clk 0:02:55.4]} 4... a6 {[%clk 0:02:51.8]} 5. Nf3 {[%clk 0:02:54.4]}
5... b5 {[%clk 0:02:51.1]} 6. b3 {[%clk 0:02:53.8]} 6... Bg4 {[%clk 0:02:51]} 7.
h3 {[%clk 0:02:52.9]} 7... Bxf3 {[%clk 0:02:50.2]} 8. Qxf3 {[%clk 0:02:52.7]}
8... e6 {[%clk 0:02:51.1]} 9. Bd3 {[%clk 0:02:52.4]} 9... Nbd7 {[%clk
0:02:36.8]} 10. O-O {[%clk 0:02:52]} 10... bxc4 {[%clk 0:02:28.1]} 11. bxc4
{[%clk 0:02:51.4]} 11... Bb4 {[%clk 0:02:28.4]} 12. Ne2 {[%clk 0:02:35.5]} 12...
O-O {[%clk 0:02:26]} 13. Bb2 {[%clk 0:02:03.9]} 13... Rb8 {[%clk 0:02:24.9]} 14.
c5 {[%clk 0:01:51.2]} 14... Bxc5 {[%clk 0:02:10.6]} 15. Bc3 {[%clk 0:01:51.8]}
15... Bb4 {[%clk 0:01:57.2]} 16. Rfc1 {[%clk 0:01:49.6]} 16... Bxc3 {[%clk
0:01:54.5]} 17. Rxc3 {[%clk 0:01:48.4]} 17... Qb6 {[%clk 0:01:54.5]} 18. Rac1
{[%clk 0:01:40.6]} 18... Rfc8 {[%clk 0:01:55]} 19. Ng3 {[%clk 0:01:20.1]} 19...
c5 {[%clk 0:01:46.9]} 20. Nh5 {[%clk 0:00:59.4]} 20... c4 {[%clk 0:01:41.6]} 21.
Nxf6+ {[%clk 0:00:43.9]} 21... Nxf6 {[%clk 0:01:42.5]} 22. g4 {[%clk 0:00:43.2]}
22... Qd8 {[%clk 0:01:31.7]} 23. Bb1 {[%clk 0:00:32]} 23... Qa5 {[%clk
0:01:29.4]} 24. g5 {[%clk 0:00:28.5]} 24... Rxb1 {[%clk 0:01:14.8]} 25. Rxb1
{[%clk 0:00:28.6]} 25... Qxc3 {[%clk 0:01:14.6]} 26. gxf6 {[%clk 0:00:29.3]}
26... Qc2 {[%clk 0:01:11]} 27. Rb7 {[%clk 0:00:27.2]} 27... Qg6+ {[%clk
0:01:09.3]} 28. Kh2 {[%clk 0:00:24.9]} 28... Qxf6 {[%clk 0:01:09.6]} 29. Qg3
{[%clk 0:00:22.3]} 29... h6 {[%clk 0:01:05.8]} 30. Rb8 {[%clk 0:00:20.6]} 30...
Rxb8 {[%clk 0:01:05.5]} 31. Qxb8+ {[%clk 0:00:21.5]} 31... Kh7 {[%clk
0:01:06.2]} 32. Kg2 {[%clk 0:00:20.7]} 32... Qg6+ {[%clk 0:01:04.3]} 33. Kf1
{[%clk 0:00:20.1]} 33... Qd3+ {[%clk 0:01:04.3]} 34. Kg2 {[%clk 0:00:20.3]}
34... c3 {[%clk 0:01:04.7]} 0-1

[Event "Early-Titled-Tuesday-Blitz-August-29-2023"]
[Site "Chess.com"]
[Date "2023.08.29"]
[Round "3"]
[White "FairChess_on_YouTube"]
[Black "artin10862"]
[Result "1-0"]
[WhiteElo "3058"]
[BlackElo "2807"]
[TimeControl "180+1"]
[EndTime "8:27:41 PDT"]
[Termination "FairChess_on_YouTube won by resignation"]

1. d4 {[%clk 0:03:00.2]} 1... Nf6 {[%clk 0:02:58.7]} 2. c4 {[%clk 0:03:00]} 2...
e6 {[%clk 0:02:58.7]} 3. Nf3 {[%clk 0:02:59.3]} 3... d5 {[%clk 0:02:58.2]} 4.
Bg5 {[%clk 0:02:59.4]} 4... dxc4 {[%clk 0:02:54.9]} 5. e4 {[%clk 0:02:59]} 5...
Bb4+ {[%clk 0:02:52.4]} 6. Nc3 {[%clk 0:02:57.7]} 6... h6 {[%clk 0:02:52]} 7.
Bxf6 {[%clk 0:02:56.6]} 7... Qxf6 {[%clk 0:02:52.9]} 8. Bxc4 {[%clk 0:02:56.8]}
8... O-O {[%clk 0:02:50.8]} 9. O-O {[%clk 0:02:56.3]} 9... c5 {[%clk 0:02:51.1]}
10. e5 {[%clk 0:02:53.7]} 10... Qd8 {[%clk 0:02:20.7]} 11. Ne4 {[%clk
0:02:53.6]} 11... cxd4 {[%clk 0:02:13.6]} 12. Nxd4 {[%clk 0:02:53.9]} 12... Bd7
{[%clk 0:02:13.9]} 13. Qg4 {[%clk 0:02:38.4]} 13... Nc6 {[%clk 0:02:11.7]} 14.
Nf3 {[%clk 0:02:15.9]} 14... Kh8 {[%clk 0:02:01.5]} 15. Rad1 {[%clk 0:02:14.2]}
15... Qc7 {[%clk 0:02:00.1]} 16. Nf6 {[%clk 0:02:08.3]} 16... Rad8 {[%clk
0:01:23.2]} 17. Qe4 {[%clk 0:01:50.6]} 17... g6 {[%clk 0:00:43.7]} 18. Qf4
{[%clk 0:01:14]} 18... Kg7 {[%clk 0:00:42.7]} 19. Nh5+ {[%clk 0:01:13.5]} 19...
Kh7 {[%clk 0:00:30.4]} 20. Qf6 {[%clk 0:01:06.6]} 20... gxh5 {[%clk 0:00:21]}
21. Bd3+ {[%clk 0:01:05.4]} 21... Kg8 {[%clk 0:00:21.3]} 22. Ng5 {[%clk
0:00:54.8]} 22... hxg5 {[%clk 0:00:11]} 23. Qxg5+ {[%clk 0:00:54.6]} 23... Kh8
{[%clk 0:00:11.9]} 24. Qh6+ {[%clk 0:00:55.2]} 1-0

[Event "Early-Titled-Tuesday-Blitz-August-29-2023"]
[Site "Chess.com"]
[Date "2023.08.29"]
[Round "3"]
[White "Jojo_898"]
[Black "bazar-wokzal"]
[Result "1-0"]
[WhiteElo "2439"]
[BlackElo "2597"]
[TimeControl "180+1"]
[EndTime "8:27:41 PDT"]
[Termination "Jojo_898 won by resignation"]

1. e4 {[%clk 0:03:00.9]} 1... Nc6 {[%clk 0:02:55.4]} 2. Nf3 {[%clk 0:02:59.3]}
2... d5 {[%clk 0:02:55.3]} 3. exd5 {[%clk 0:02:57.6]} 3... Qxd5 {[%clk
0:02:56.2]} 4. Nc3 {[%clk 0:02:58]} 4... Qa5 {[%clk 0:02:55.7]} 5. h3 {[%clk
0:02:57.9]} 5... Nf6 {[%clk 0:02:54.8]} 6. Bc4 {[%clk 0:02:50.9]} 6... e5 {[%clk
0:02:52.1]} 7. O-O {[%clk 0:02:49.9]} 7... Bb4 {[%clk 0:02:48.2]} 8. a3 {[%clk
0:02:32]} 8... O-O {[%clk 0:02:43.1]} 9. Rb1 {[%clk 0:02:06.6]} 9... Bxc3 {[%clk
0:02:37.4]} 10. dxc3 {[%clk 0:02:07.5]} 10... e4 {[%clk 0:02:32.7]} 11. Nd4
{[%clk 0:02:02.9]} 11... Bd7 {[%clk 0:02:19.3]} 12. b4 {[%clk 0:01:54.5]} 12...
Qe5 {[%clk 0:02:14.1]} 13. Be3 {[%clk 0:01:45.4]} 13... Rad8 {[%clk 0:02:13.3]}
14. Qe2 {[%clk 0:01:44.3]} 14... Nd5 {[%clk 0:02:08.3]} 15. Nxc6 {[%clk
0:01:37.7]} 15... Bxc6 {[%clk 0:02:07.6]} 16. Bd4 {[%clk 0:01:38]} 16... Nxc3
{[%clk 0:02:00.8]} 17. Bxe5 {[%clk 0:01:35.1]} 17... Nxe2+ {[%clk 0:01:58.6]}
18. Bxe2 {[%clk 0:01:35.8]} 18... Rd2 {[%clk 0:01:58.6]} 19. Rfe1 {[%clk
0:01:29.3]} 19... Rxc2 {[%clk 0:01:58.3]} 20. Bxc7 {[%clk 0:01:29.9]} 20... Rc8
{[%clk 0:01:54]} 21. Bf4 {[%clk 0:01:29.3]} 21... f5 {[%clk 0:01:53.6]} 22. Rbc1
{[%clk 0:01:29]} 22... Bd5 {[%clk 0:01:52.2]} 23. Bf1 {[%clk 0:01:19.8]} 23...
Kf7 {[%clk 0:01:50.7]} 24. Red1 {[%clk 0:01:18.4]} 24... Ke6 {[%clk 0:01:49.9]}
25. Be3 {[%clk 0:00:59.8]} 25... a6 {[%clk 0:01:49.7]} 26. Rxc2 {[%clk
0:00:55.1]} 26... Rxc2 {[%clk 0:01:48.6]} 27. Rc1 {[%clk 0:00:55.2]} 27... Ra2
{[%clk 0:01:48.6]} 28. Rc7 {[%clk 0:00:43.4]} 28... g6 {[%clk 0:01:38.6]} 29. g3
{[%clk 0:00:42.5]} 29... h5 {[%clk 0:01:30.7]} 30. Rg7 {[%clk 0:00:38.8]} 30...
Kf6 {[%clk 0:01:29]} 31. Bd4+ {[%clk 0:00:38.4]} 31... Kg5 {[%clk 0:01:29.2]}
32. h4+ {[%clk 0:00:27.1]} 32... Kh6 {[%clk 0:01:28.9]} 33. Rd7 {[%clk
0:00:27.6]} 33... Bc6 {[%clk 0:01:25.4]} 34. Be3+ {[%clk 0:00:27.6]} 34... g5
{[%clk 0:01:24.8]} 35. hxg5+ {[%clk 0:00:27.4]} 35... Kg6 {[%clk 0:01:25.4]} 36.
Rd6+ {[%clk 0:00:27.7]} 36... Kf7 {[%clk 0:01:24.8]} 37. g6+ {[%clk 0:00:27.5]}
37... Ke7 {[%clk 0:01:24.9]} 38. g7 {[%clk 0:00:25.4]} 38... Kxd6 {[%clk
0:01:24.7]} 39. g8=Q {[%clk 0:00:25.4]} 39... Rxa3 {[%clk 0:01:24.1]} 40. b5
{[%clk 0:00:24.7]} 40... axb5 {[%clk 0:01:23.9]} 41. Qf8+ {[%clk 0:00:24.8]}
41... Ke5 {[%clk 0:01:23.9]} 42. Qxa3 {[%clk 0:00:25.7]} 1-0

[Event "Early-Titled-Tuesday-Blitz-August-29-2023"]
[Site "Chess.com"]
[Date "2023.08.29"]
[Round "3"]
[White "maurovargas01"]
[Black "garfield_pg"]
[Result "0-1"]
[WhiteElo "1909"]
[BlackElo "2359"]
[TimeControl "180+1"]
[EndTime "8:27:42 PDT"]
[Termination "garfield_pg won on time"]

1. e4 {[%clk 0:02:06.2]} 1... c5 {[%clk 0:02:59.2]} 2. Nc3 {[%clk 0:02:06.1]}
2... g6 {[%clk 0:02:59.1]} 3. f4 {[%clk 0:02:07]} 3... Bg7 {[%clk 0:02:59]} 4.
Nf3 {[%clk 0:02:07.9]} 4... Nc6 {[%clk 0:02:59.1]} 5. Bb5 {[%clk 0:02:06.9]}
5... Nd4 {[%clk 0:02:58.8]} 6. Bf1 {[%clk 0:02:06]} 6... d6 {[%clk 0:02:53.1]}
7. Nd5 {[%clk 0:02:06]} 7... Bg4 {[%clk 0:02:43]} 8. c3 {[%clk 0:01:45.4]} 8...
Nxf3+ {[%clk 0:02:34.5]} 9. gxf3 {[%clk 0:01:46.3]} 9... Bd7 {[%clk 0:02:34.9]}
10. d3 {[%clk 0:01:42.7]} 10... e6 {[%clk 0:02:33.1]} 11. Ne3 {[%clk 0:01:42.4]}
11... Qh4+ {[%clk 0:02:33.4]} 12. Ke2 {[%clk 0:01:36.7]} 12... Bh6 {[%clk
0:02:30.5]} 13. Ng2 {[%clk 0:01:34.1]} 13... Qe7 {[%clk 0:02:24.3]} 14. Be3
{[%clk 0:01:33.2]} 14... Nf6 {[%clk 0:02:23.4]} 15. Qe1 {[%clk 0:01:32.5]} 15...
Nh5 {[%clk 0:02:22.1]} 16. Qf2 {[%clk 0:01:21.8]} 16... Qf6 {[%clk 0:02:16.6]}
17. Qh4 {[%clk 0:01:13.6]} 17... Qxh4 {[%clk 0:02:13.2]} 18. Nxh4 {[%clk
0:01:12.4]} 18... Bxf4 {[%clk 0:02:10.8]} 19. Bh3 {[%clk 0:00:52.2]} 19... Bxe3
{[%clk 0:01:55.2]} 20. Kxe3 {[%clk 0:00:51.9]} 20... e5 {[%clk 0:01:55]} 21. Bg4
{[%clk 0:00:47.2]} 21... Nf4 {[%clk 0:01:52.3]} 22. Rhg1 {[%clk 0:00:40.8]}
22... O-O-O {[%clk 0:01:50.1]} 23. b4 {[%clk 0:00:36.1]} 23... Rhf8 {[%clk
0:01:41.3]} 24. bxc5 {[%clk 0:00:34.6]} 24... dxc5 {[%clk 0:01:42.2]} 25. Rab1
{[%clk 0:00:34.6]} 25... Bxg4 {[%clk 0:01:41.1]} 26. fxg4 {[%clk 0:00:33.5]}
26... Rxd3+ {[%clk 0:01:40.7]} 27. Kf2 {[%clk 0:00:31.9]} 27... Rd2+ {[%clk
0:01:39]} 28. Ke1 {[%clk 0:00:30.8]} 28... Rxh2 {[%clk 0:01:36.1]} 29. Nf3
{[%clk 0:00:30]} 29... Nd3+ {[%clk 0:01:22.3]} 30. Kd1 {[%clk 0:00:23.3]} 30...
Rxa2 {[%clk 0:01:21.6]} 31. Rg3 {[%clk 0:00:11]} 31... Rd8 {[%clk 0:01:20.5]}
0-1

[Event "Early-Titled-Tuesday-Blitz-August-29-2023"]
[Site "Chess.com"]
[Date "2023.08.29"]
[Round "3"]
[White "schack_vit"]
[Black "seopie"]
[Result "0-1"]
[WhiteElo "2460"]
[BlackElo "2664"]
[TimeControl "180+1"]
[EndTime "8:27:44 PDT"]
[Termination "seopie won on time"]

1. c4 {[%clk 0:03:00.9]} 1... Nf6 {[%clk 0:02:59.7]} 2. g3 {[%clk 0:03:00.9]}
2... e6 {[%clk 0:02:55.5]} 3. Bg2 {[%clk 0:03:00.6]} 3... d5 {[%clk 0:02:55.8]}
4. Nf3 {[%clk 0:02:56.7]} 4... Be7 {[%clk 0:02:56]} 5. O-O {[%clk 0:02:56.6]}
5... O-O {[%clk 0:02:56.1]} 6. b3 {[%clk 0:02:56.3]} 6... d4 {[%clk 0:02:49.3]}
7. e3 {[%clk 0:02:55.8]} 7... c5 {[%clk 0:02:49.1]} 8. exd4 {[%clk 0:02:55.2]}
8... cxd4 {[%clk 0:02:50]} 9. Ne5 {[%clk 0:02:55.6]} 9... Nfd7 {[%clk 0:02:48]}
10. Nd3 {[%clk 0:02:54.2]} 10... Nc6 {[%clk 0:02:47.1]} 11. Ba3 {[%clk
0:02:50.9]} 11... Bxa3 {[%clk 0:02:45]} 12. Nxa3 {[%clk 0:02:51.8]} 12... Qa5
{[%clk 0:02:35.8]} 13. Nb5 {[%clk 0:02:45.8]} 13... a6 {[%clk 0:02:24.6]} 14.
Nd6 {[%clk 0:02:43.8]} 14... Qc7 {[%clk 0:02:24]} 15. Nxc8 {[%clk 0:02:35.9]}
15... Raxc8 {[%clk 0:02:24.9]} 16. f4 {[%clk 0:02:35.7]} 16... Rfd8 {[%clk
0:02:24.4]} 17. Qe2 {[%clk 0:01:56.3]} 17... a5 {[%clk 0:02:17.9]} 18. Rac1
{[%clk 0:01:53.9]} 18... Nb4 {[%clk 0:02:13.5]} 19. Ne5 {[%clk 0:01:22.4]} 19...
Nxa2 {[%clk 0:02:01.1]} 20. Ra1 {[%clk 0:01:21.5]} 20... Nb4 {[%clk 0:02:00.5]}
21. Qe4 {[%clk 0:00:48.4]} 21... Nc5 {[%clk 0:01:53.7]} 22. Qf3 {[%clk
0:00:48.3]} 22... d3 {[%clk 0:01:44.1]} 23. Rab1 {[%clk 0:00:41.1]} 23... b6
{[%clk 0:01:43.1]} 24. Rfe1 {[%clk 0:00:36]} 24... g6 {[%clk 0:01:40.2]} 25. h4
{[%clk 0:00:33.3]} 25... Nc2 {[%clk 0:01:33.4]} 26. Rf1 {[%clk 0:00:29.5]} 26...
Nd4 {[%clk 0:01:32.4]} 27. Qe3 {[%clk 0:00:24.5]} 27... Ndxb3 {[%clk 0:01:21]}
28. h5 {[%clk 0:00:23.7]} 28... Qd6 {[%clk 0:01:20.3]} 29. hxg6 {[%clk 0:00:23]}
29... hxg6 {[%clk 0:01:20.3]} 30. Ng4 {[%clk 0:00:05]} 30... Qd4 {[%clk
0:01:18]} 31. Rfd1 {[%clk 0:00:02.7]} 31... a4 {[%clk 0:01:13]} 0-1

[Event "Early-Titled-Tuesday-Blitz-August-29-2023"]
[Site "Chess.com"]
[Date "2023.08.29"]
[Round "3"]
[White "Kostukov_Alex"]
[Black "chessajedrezz2020"]
[Result "1-0"]
[WhiteElo "2358"]
[BlackElo "2682"]
[TimeControl "180+1"]
[EndTime "8:27:45 PDT"]
[Termination "Kostukov_Alex won by resignation"]

1. g3 {[%clk 0:02:59.2]} 1... e5 {[%clk 0:02:58.6]} 2. c4 {[%clk 0:02:57.9]}
2... f5 {[%clk 0:02:58]} 3. Bg2 {[%clk 0:02:58.2]} 3... Nf6 {[%clk 0:02:58.1]}
4. Nc3 {[%clk 0:02:58.8]} 4... g6 {[%clk 0:02:48.3]} 5. d4 {[%clk 0:02:55.8]}
5... exd4 {[%clk 0:02:44]} 6. Qxd4 {[%clk 0:02:55.5]} 6... Nc6 {[%clk
0:02:43.5]} 7. Qd2 {[%clk 0:02:54.5]} 7... Bg7 {[%clk 0:02:33.6]} 8. b3 {[%clk
0:02:53.4]} 8... Ne4 {[%clk 0:02:27.3]} 9. Bxe4 {[%clk 0:02:53.4]} 9... fxe4
{[%clk 0:02:27.2]} 10. Bb2 {[%clk 0:02:53.7]} 10... O-O {[%clk 0:02:05.3]} 11.
Nxe4 {[%clk 0:02:41.7]} 11... Bxb2 {[%clk 0:02:04.3]} 12. Qxb2 {[%clk
0:02:41.6]} 12... Qe7 {[%clk 0:02:04.7]} 13. Nc3 {[%clk 0:02:33.1]} 13... Nb4
{[%clk 0:01:39.4]} 14. Rd1 {[%clk 0:02:24.9]} 14... b6 {[%clk 0:01:33.2]} 15. h4
{[%clk 0:02:16.6]} 15... Bb7 {[%clk 0:01:31.4]} 16. Rh2 {[%clk 0:02:16.9]} 16...
Qe5 {[%clk 0:01:20.8]} 17. a3 {[%clk 0:01:56.5]} 17... Na2 {[%clk 0:00:41.7]}
18. Rd3 {[%clk 0:01:55.1]} 18... Nxc3 {[%clk 0:00:38.8]} 19. Qxc3 {[%clk
0:01:55]} 19... Qe7 {[%clk 0:00:37.4]} 20. h5 {[%clk 0:01:46.9]} 20... g5 {[%clk
0:00:34.8]} 21. h6 {[%clk 0:01:46.4]} 21... Rf6 {[%clk 0:00:34.5]} 22. Re3
{[%clk 0:01:39.3]} 22... Qxa3 {[%clk 0:00:31.2]} 23. Rh5 {[%clk 0:01:32.4]}
23... Rg6 {[%clk 0:00:25.3]} 24. Re5 {[%clk 0:01:25.4]} 24... Qa2 {[%clk
0:00:08.9]} 25. Rhxg5 {[%clk 0:01:21]} 25... Qb1+ {[%clk 0:00:06.7]} 26. Kd2
{[%clk 0:01:20.2]} 26... Qa2+ {[%clk 0:00:06.9]} 27. Ke3 {[%clk 0:01:15.4]}
27... Rf8 {[%clk 0:00:04.6]} 28. Rxg6+ {[%clk 0:01:14.1]} 28... hxg6 {[%clk
0:00:04.7]} 29. h7+ {[%clk 0:01:07.4]} 29... Kxh7 {[%clk 0:00:03.4]} 30. Re7+
{[%clk 0:01:07.4]} 30... Kh6 {[%clk 0:00:03.8]} 31. Qg7+ {[%clk 0:01:06.1]} 1-0

[Event "Early-Titled-Tuesday-Blitz-August-29-2023"]
[Site "Chess.com"]
[Date "2023.08.29"]
[Round "3"]
[White "Apocalyps999"]
[Black "blitzo_vich"]
[Result "0-1"]
[WhiteElo "2337"]
[BlackElo "2598"]
[TimeControl "180+1"]
[EndTime "8:27:48 PDT"]
[Termination "blitzo_vich won by resignation"]

1. e4 {[%clk 0:03:00.9]} 1... c5 {[%clk 0:02:59]} 2. c3 {[%clk 0:03:00.5]} 2...
Nf6 {[%clk 0:02:58.3]} 3. e5 {[%clk 0:03:00.2]} 3... Nd5 {[%clk 0:02:58.3]} 4.
Nf3 {[%clk 0:03:00.8]} 4... e6 {[%clk 0:02:56.3]} 5. d4 {[%clk 0:02:56.8]} 5...
cxd4 {[%clk 0:02:56.4]} 6. cxd4 {[%clk 0:02:57.7]} 6... d6 {[%clk 0:02:57]} 7.
Bc4 {[%clk 0:02:55.5]} 7... Nc6 {[%clk 0:02:55.6]} 8. O-O {[%clk 0:02:54.5]}
8... Nb6 {[%clk 0:02:55.5]} 9. Bb5 {[%clk 0:02:49.1]} 9... Bd7 {[%clk
0:02:54.5]} 10. Nc3 {[%clk 0:02:39.5]} 10... Nb4 {[%clk 0:02:53.2]} 11. Bxd7+
{[%clk 0:02:33.2]} 11... Qxd7 {[%clk 0:02:51.7]} 12. a3 {[%clk 0:02:33]} 12...
N4d5 {[%clk 0:02:50.1]} 13. Ne4 {[%clk 0:02:29.7]} 13... h6 {[%clk 0:02:45.4]}
14. exd6 {[%clk 0:02:23.8]} 14... Bxd6 {[%clk 0:02:43.8]} 15. Ne5 {[%clk
0:02:21.2]} 15... Qe7 {[%clk 0:02:35.7]} 16. a4 {[%clk 0:02:11.8]} 16... O-O
{[%clk 0:02:31.4]} 17. a5 {[%clk 0:02:11.2]} 17... Nd7 {[%clk 0:02:29.3]} 18.
Nc4 {[%clk 0:02:07.1]} 18... Bxh2+ {[%clk 0:02:21.6]} 19. Kxh2 {[%clk
0:01:50.5]} 19... Qh4+ {[%clk 0:02:20.3]} 20. Kg1 {[%clk 0:01:51.1]} 20... Qxe4
{[%clk 0:02:19.6]} 21. Re1 {[%clk 0:01:50.7]} 21... Qh4 {[%clk 0:02:14.8]} 22.
Nd6 {[%clk 0:01:44.3]} 22... N7f6 {[%clk 0:02:10.4]} 23. f3 {[%clk 0:01:22.4]}
23... b6 {[%clk 0:01:51.8]} 24. axb6 {[%clk 0:01:15.2]} 24... axb6 {[%clk
0:01:50.8]} 25. Bd2 {[%clk 0:01:12.1]} 25... Qxd4+ {[%clk 0:01:49.2]} 26. Kh1
{[%clk 0:01:10.8]} 26... Nh5 {[%clk 0:01:39.1]} 27. Ne4 {[%clk 0:00:44.1]} 27...
Rxa1 {[%clk 0:01:24]} 28. Qxa1 {[%clk 0:00:37.7]} 28... f5 {[%clk 0:01:22]} 29.
Bc3 {[%clk 0:00:30.7]} 29... Nxc3 {[%clk 0:01:20.6]} 30. bxc3 {[%clk 0:00:29.3]}
30... Qd8 {[%clk 0:01:19.8]} 31. Nf2 {[%clk 0:00:20.5]} 31... Qh4+ {[%clk
0:01:17.1]} 32. Nh3 {[%clk 0:00:20.4]} 32... Nf4 {[%clk 0:01:15.1]} 33. Re2
{[%clk 0:00:16]} 33... Nxe2 {[%clk 0:01:13.8]} 34. Qe1 {[%clk 0:00:11.3]} 34...
Qxe1+ {[%clk 0:01:12.3]} 0-1